[Event "January 2 Early 2024"]
[Site "https://www.chess.com"]
[Date "2024.01.02"]
[Round "1"]
[White "Sadykov, Ramil"]
[Black "Franchini, Gabriele"]
[Result "1-0"]
[Board "247"]
[TimeControl "180+1"]
[WhiteFideId "24113590"]
[BlackFideId "806790"]
[WhiteElo "2604"]
[BlackElo "2199"]
[WhiteTeam "FID"]
[BlackTeam "ITA"]
[WhiteClock "0:00:02"]
[BlackClock "0:00:10"]

1. e4 {[%clk 0:02:59]}  e6 {[%clk 0:03:00]} 2. d4 {[%clk 0:02:59]}  d5 {[%clk 0:03:00]} 3. e5 {[%clk 0:02:59]}  c5 {[%clk 0:03:00]} 4. c3 {[%clk 0:03:00]}  Nc6 {[%clk 0:03:01]} 5. Nf3 {[%clk 0:03:01]}  Bd7 {[%clk 0:03:02]} 6. Be2 {[%clk 0:02:48]}  Nge7 {[%clk 0:03:01]} 7. Na3 {[%clk 0:02:38]}  cxd4 {[%clk 0:02:57]} 8. cxd4 {[%clk 0:02:33]}  Nf5 {[%clk 0:02:54]} 9. Nc2 {[%clk 0:02:33]}  a5 {[%clk 0:02:54]} 10. h4 {[%clk 0:02:00]}  h5 {[%clk 0:02:44]} 11. Bg5 {[%clk 0:01:51]}  Qb6 {[%clk 0:02:42]} 12. Rb1 {[%clk 0:01:51]}  Nb4 {[%clk 0:02:34]} 13. Nxb4 {[%clk 0:01:26]}  axb4 {[%clk 0:02:35]} 14. a3 {[%clk 0:01:27]}  bxa3 {[%clk 0:02:35]} 15. bxa3 {[%clk 0:01:27]}  Qa7 {[%clk 0:02:20]} 16. Qb3 {[%clk 0:01:11]}  Bxa3 {[%clk 0:01:52]} 17. Qxb7 {[%clk 0:00:38]}  O-O {[%clk 0:01:51]} 18. Qxa7 {[%clk 0:00:25]}  Rxa7 {[%clk 0:01:52]} 19. Kd2 {[%clk 0:00:24]}  Rfa8 {[%clk 0:01:47]} 20. Bd3 {[%clk 0:00:17]}  Bf8 {[%clk 0:01:35]} 21. Bxf5 {[%clk 0:00:12]}  exf5 {[%clk 0:01:35]} 22. Rhc1 {[%clk 0:00:11]}  Ra2+ {[%clk 0:01:07]} 23. Rc2 {[%clk 0:00:10]}  g6 {[%clk 0:00:55]} 24. Rbb2 {[%clk 0:00:06]}  Ra1 {[%clk 0:00:51]} 25. Rc7 {[%clk 0:00:04]}  Ba4 {[%clk 0:00:42]} 26. Bf6 {[%clk 0:00:04]}  Rd1+ {[%clk 0:00:40]} 27. Ke3 {[%clk 0:00:04]}  Bh6+ {[%clk 0:00:37]} 28. Ng5 {[%clk 0:00:04]}  Re1+ {[%clk 0:00:27]} 29. Kf4 {[%clk 0:00:03]}  Rd1 {[%clk 0:00:23]} 30. Ke3 {[%clk 0:00:03]}  Re1+ {[%clk 0:00:23]} 31. Kf3 {[%clk 0:00:03]}  Rd1 {[%clk 0:00:24]} 32. Rbb7 {[%clk 0:00:03]}  Be8 {[%clk 0:00:18]} 33. Re7 {[%clk 0:00:01]}  Ra3+ {[%clk 0:00:18]} 34. Ke2 {[%clk 0:00:02]}  Rad3 {[%clk 0:00:10]} 35. Rxe8+ {[%clk 0:00:01]}  Bf8 {[%clk 0:00:11]} 36. Rxf8+ {[%clk 0:00:02]}  Kxf8 {[%clk 0:00:10]} 37. Rb8# {[%clk 0:00:02]} 1-0

[Event "January 2 Early 2024"]
[Site "https://www.chess.com"]
[Date "2024.01.02"]
[Round "1"]
[White "Thiel, Thomas"]
[Black "Olenik Campa, Rudi"]
[Result "0-1"]
[Board "252"]
[TimeControl "180+1"]
[WhiteFideId "4615964"]
[BlackFideId "14633264"]
[WhiteElo "2184"]
[BlackElo "2594"]
[WhiteTeam "GER"]
[BlackTeam "SLO"]
[WhiteClock "0:00:51"]
[BlackClock "0:01:44"]

1. e4 {[%clk 0:03:00]}  e6 {[%clk 0:02:58]} 2. d4 {[%clk 0:02:59]}  d5 {[%clk 0:02:57]} 3. Nc3 {[%clk 0:02:59]}  Nc6 {[%clk 0:02:55]} 4. Nf3 {[%clk 0:02:55]}  Nf6 {[%clk 0:02:53]} 5. e5 {[%clk 0:02:55]}  Ne4 {[%clk 0:02:53]} 6. Bd3 {[%clk 0:02:54]}  Bb4 {[%clk 0:02:53]} 7. O-O {[%clk 0:02:51]}  Nxc3 {[%clk 0:02:51]} 8. bxc3 {[%clk 0:02:51]}  Bxc3 {[%clk 0:02:52]} 9. Rb1 {[%clk 0:02:49]}  a5 {[%clk 0:02:52]} 10. Bb5 {[%clk 0:02:47]}  Bd7 {[%clk 0:02:52]} 11. Qd3 {[%clk 0:02:42]}  Bb4 {[%clk 0:02:51]} 12. Ng5 {[%clk 0:02:22]}  h6 {[%clk 0:02:48]} 13. Nh3 {[%clk 0:02:13]}  O-O {[%clk 0:02:45]} 14. f4 {[%clk 0:02:12]}  Be7 {[%clk 0:02:30]} 15. f5 {[%clk 0:02:10]}  exf5 {[%clk 0:02:30]} 16. Nf4 {[%clk 0:02:09]}  Be6 {[%clk 0:02:24]} 17. Bxc6 {[%clk 0:01:38]}  bxc6 {[%clk 0:02:24]} 18. Qg3 {[%clk 0:01:38]}  Kh8 {[%clk 0:02:11]} 19. Nh5 {[%clk 0:01:37]}  Rg8 {[%clk 0:02:11]} 20. Nf4 {[%clk 0:01:20]}  Bg5 {[%clk 0:01:58]} 21. Nd3 {[%clk 0:01:17]}  Be7 {[%clk 0:01:49]} 22. Nf4 {[%clk 0:01:13]}  Kh7 {[%clk 0:01:48]} 23. Rb3 {[%clk 0:01:04]}  c5 {[%clk 0:01:44]} 24. c3 {[%clk 0:00:57]}  a4 {[%clk 0:01:44]} 25. Rb6 {[%clk 0:00:51]}  cxb6 {[%clk 0:01:44]} 0-1

[Event "January 2 Early 2024"]
[Site "https://www.chess.com"]
[Date "2024.01.02"]
[Round "1"]
[White "Lund, Gunnar"]
[Black "Rose, Felix"]
[Result "0-1"]
[Board "255"]
[TimeControl "180+1"]
[WhiteFideId "1520814"]
[BlackFideId "5105722"]
[WhiteElo "2586"]
[BlackElo "2171"]
[WhiteTeam "NOR"]
[BlackTeam "MEX"]
[WhiteClock "0:00:14"]
[BlackClock "0:01:12"]

1. d4 {[%clk 0:03:00]}  d5 {[%clk 0:02:58]} 2. c4 {[%clk 0:03:00]}  e6 {[%clk 0:02:57]} 3. Nc3 {[%clk 0:02:51]}  Nf6 {[%clk 0:02:58]} 4. cxd5 {[%clk 0:02:51]}  exd5 {[%clk 0:02:58]} 5. Bg5 {[%clk 0:02:51]}  c6 {[%clk 0:02:59]} 6. e3 {[%clk 0:02:50]}  Be7 {[%clk 0:03:00]} 7. Bd3 {[%clk 0:02:48]}  Nbd7 {[%clk 0:03:00]} 8. Qc2 {[%clk 0:02:48]}  h6 {[%clk 0:03:01]} 9. Bh4 {[%clk 0:02:48]}  Nh5 {[%clk 0:03:01]} 10. Bxe7 {[%clk 0:02:48]}  Qxe7 {[%clk 0:03:02]} 11. O-O-O {[%clk 0:02:47]}  Nb6 {[%clk 0:03:00]} 12. Kb1 {[%clk 0:02:46]}  Be6 {[%clk 0:02:59]} 13. Nge2 {[%clk 0:02:45]}  O-O-O {[%clk 0:02:59]} 14. h3 {[%clk 0:02:27]}  Kb8 {[%clk 0:02:54]} 15. Nc1 {[%clk 0:02:26]}  g6 {[%clk 0:02:49]} 16. Nb3 {[%clk 0:02:26]}  Ng7 {[%clk 0:02:43]} 17. Nc5 {[%clk 0:02:25]}  Bf5 {[%clk 0:02:43]} 18. Ka1 {[%clk 0:02:23]}  Bxd3 {[%clk 0:02:38]} 19. Qxd3 {[%clk 0:02:24]}  Nf5 {[%clk 0:02:36]} 20. Rc1 {[%clk 0:02:16]}  Nd6 {[%clk 0:02:31]} 21. b3 {[%clk 0:02:13]}  f5 {[%clk 0:02:28]} 22. N3a4 {[%clk 0:02:09]}  Ne4 {[%clk 0:02:22]} 23. Rc2 {[%clk 0:02:08]}  Nxa4 {[%clk 0:02:18]} 24. bxa4 {[%clk 0:02:08]}  Nxc5 {[%clk 0:02:16]} 25. Rxc5 {[%clk 0:02:09]}  Qe4 {[%clk 0:02:16]} 26. Qxe4 {[%clk 0:01:53]}  fxe4 {[%clk 0:02:16]} 27. Rc2 {[%clk 0:01:47]}  Rhf8 {[%clk 0:02:15]} 28. Rb1 {[%clk 0:01:48]}  Rf6 {[%clk 0:02:15]} 29. a5 {[%clk 0:01:47]}  a6 {[%clk 0:02:15]} 30. Rbb2 {[%clk 0:01:38]}  Rdf8 {[%clk 0:02:15]} 31. Kb1 {[%clk 0:01:38]}  Kc7 {[%clk 0:02:12]} 32. Kc1 {[%clk 0:01:39]}  g5 {[%clk 0:02:11]} 33. Kd1 {[%clk 0:01:39]}  h5 {[%clk 0:02:10]} 34. Ke1 {[%clk 0:01:38]}  g4 {[%clk 0:02:10]} 35. hxg4 {[%clk 0:01:38]}  hxg4 {[%clk 0:02:11]} 36. Re2 {[%clk 0:00:48]}  g3 {[%clk 0:02:09]} 37. fxg3 {[%clk 0:00:44]}  Rf1+ {[%clk 0:02:08]} 38. Kd2 {[%clk 0:00:45]}  Rg8 {[%clk 0:02:04]} 39. Re1 {[%clk 0:00:45]}  Rf2+ {[%clk 0:01:55]} 40. Re2 {[%clk 0:00:43]}  Rf1 {[%clk 0:01:54]} 41. Re1 {[%clk 0:00:44]}  Rf2+ {[%clk 0:01:54]} 42. Kc1 {[%clk 0:00:44]}  Rxb2 {[%clk 0:01:51]} 43. Kxb2 {[%clk 0:00:45]}  Rxg3 {[%clk 0:01:51]} 44. Re2 {[%clk 0:00:45]}  Kd6 {[%clk 0:01:50]} 45. Kc3 {[%clk 0:00:42]}  c5 {[%clk 0:01:51]} 46. dxc5+ {[%clk 0:00:42]}  Kxc5 {[%clk 0:01:51]} 47. Kd2 {[%clk 0:00:43]}  Kb5 {[%clk 0:01:50]} 48. Kc3 {[%clk 0:00:41]}  Kxa5 {[%clk 0:01:47]} 49. Kd4 {[%clk 0:00:41]}  Rg5 {[%clk 0:01:47]} 50. Rb2 {[%clk 0:00:33]}  b5 {[%clk 0:01:46]} 51. Kc5 {[%clk 0:00:33]}  Ka4 {[%clk 0:01:39]} 52. Kb6 {[%clk 0:00:31]}  Rg6+ {[%clk 0:01:29]} 53. Kc5 {[%clk 0:00:31]}  Rg3 {[%clk 0:01:24]} 54. Re2 {[%clk 0:00:27]}  Rg5 {[%clk 0:01:21]} 55. Kb6 {[%clk 0:00:26]}  a5 {[%clk 0:01:18]} 56. Kc5 {[%clk 0:00:26]}  b4 {[%clk 0:01:18]} 57. Rd2 {[%clk 0:00:19]}  Ka3 {[%clk 0:01:16]} 58. Kd4 {[%clk 0:00:19]}  a4 {[%clk 0:01:16]} 59. Kc5 {[%clk 0:00:19]}  b3 {[%clk 0:01:15]} 60. axb3 {[%clk 0:00:20]}  axb3 {[%clk 0:01:15]} 61. Rd4 {[%clk 0:00:19]}  b2 {[%clk 0:01:15]} 62. Rb4 {[%clk 0:00:19]}  Rxg2 {[%clk 0:01:15]} 63. Rb8 {[%clk 0:00:19]}  Ka2 {[%clk 0:01:13]} 64. Ra8+ {[%clk 0:00:19]}  Kb3 {[%clk 0:01:12]} 65. Kxd5 {[%clk 0:00:16]}  b1=Q {[%clk 0:01:11]} 66. Rb8+ {[%clk 0:00:17]}  Kc2 {[%clk 0:01:11]} 67. Rxb1 {[%clk 0:00:18]}  Kxb1 {[%clk 0:01:12]} 68. Kxe4 {[%clk 0:00:19]}  Kc2 {[%clk 0:01:13]} 69. Kd5 {[%clk 0:00:18]}  Kc3 {[%clk 0:01:13]} 70. e4 {[%clk 0:00:18]}  Rd2+ {[%clk 0:01:13]} 71. Kc5 {[%clk 0:00:17]}  Kd3 {[%clk 0:01:13]} 72. e5 {[%clk 0:00:15]}  Ke4 {[%clk 0:01:11]} 73. e6 {[%clk 0:00:16]}  Kf5 {[%clk 0:01:11]} 74. e7 {[%clk 0:00:15]}  Re2 {[%clk 0:01:12]} 75. Kd6 {[%clk 0:00:14]}  Kf6 {[%clk 0:01:12]} 0-1

[Event "January 2 Early 2024"]
[Site "https://www.chess.com"]
[Date "2024.01.02"]
[Round "1"]
[White "Tagliati, Eleonore"]
[Black "Shubenkova, Veronika"]
[Result "0-1"]
[Board "256"]
[TimeControl "180+1"]
[WhiteFideId "45172234"]
[BlackFideId "44124040"]
[WhiteElo "2170"]
[BlackElo "2585"]
[WhiteTeam "FRA"]
[BlackTeam "RUS"]
[WhiteClock "0:00:10"]
[BlackClock "0:00:26"]

1. e4 {[%clk 0:03:00]}  e6 {[%clk 0:02:52]} 2. d4 {[%clk 0:03:00]}  d5 {[%clk 0:02:53]} 3. e5 {[%clk 0:03:01]}  c5 {[%clk 0:02:51]} 4. c3 {[%clk 0:03:01]}  Nc6 {[%clk 0:02:50]} 5. Nf3 {[%clk 0:03:01]}  Qb6 {[%clk 0:02:50]} 6. a3 {[%clk 0:02:59]}  a5 {[%clk 0:02:45]} 7. Bd3 {[%clk 0:02:51]}  Bd7 {[%clk 0:02:45]} 8. Bc2 {[%clk 0:02:49]}  h6 {[%clk 0:02:45]} 9. O-O {[%clk 0:02:48]}  cxd4 {[%clk 0:02:42]} 10. cxd4 {[%clk 0:02:47]}  Nge7 {[%clk 0:02:43]} 11. Nc3 {[%clk 0:02:43]}  Na7 {[%clk 0:02:24]} 12. Na4 {[%clk 0:02:30]}  Bxa4 {[%clk 0:02:23]} 13. Bxa4+ {[%clk 0:02:28]}  Nec6 {[%clk 0:02:23]} 14. Rb1 {[%clk 0:02:25]}  Be7 {[%clk 0:02:22]} 15. Be3 {[%clk 0:02:24]}  O-O {[%clk 0:02:22]} 16. Qd3 {[%clk 0:02:15]}  f5 {[%clk 0:02:19]} 17. exf6 {[%clk 0:02:14]}  Bxf6 {[%clk 0:02:19]} 18. Bc2 {[%clk 0:02:09]}  Ne7 {[%clk 0:02:09]} 19. Ne5 {[%clk 0:01:52]}  Bxe5 {[%clk 0:02:00]} 20. dxe5 {[%clk 0:01:52]}  Qb5 {[%clk 0:01:58]} 21. Qh7+ {[%clk 0:01:24]}  Kf7 {[%clk 0:01:58]} 22. b4 {[%clk 0:01:25]}  Rh8 {[%clk 0:01:55]} 23. Qd3 {[%clk 0:01:23]}  Qxd3 {[%clk 0:01:54]} 24. Bxd3 {[%clk 0:01:24]}  axb4 {[%clk 0:01:52]} 25. Rxb4 {[%clk 0:01:24]}  Nac6 {[%clk 0:01:39]} 26. Rxb7 {[%clk 0:01:23]}  Nxe5 {[%clk 0:01:39]} 27. Be2 {[%clk 0:01:17]}  Rhc8 {[%clk 0:01:34]} 28. Ra1 {[%clk 0:01:08]}  Nc4 {[%clk 0:01:28]} 29. Bxc4 {[%clk 0:01:05]}  Rxc4 {[%clk 0:01:28]} 30. g3 {[%clk 0:00:52]}  e5 {[%clk 0:01:24]} 31. Bd2 {[%clk 0:00:35]}  Kf6 {[%clk 0:01:23]} 32. Rb6+ {[%clk 0:00:33]}  Rc6 {[%clk 0:01:20]} 33. Rb5 {[%clk 0:00:29]}  d4 {[%clk 0:01:06]} 34. Bb4 {[%clk 0:00:29]}  Ng6 {[%clk 0:01:05]} 35. a4 {[%clk 0:00:28]}  e4 {[%clk 0:00:55]} 36. a5 {[%clk 0:00:28]}  Ne5 {[%clk 0:00:54]} 37. Rd5 {[%clk 0:00:24]}  Rc4 {[%clk 0:00:47]} 38. Bd6 {[%clk 0:00:22]}  Nc6 {[%clk 0:00:43]} 39. Bc7 {[%clk 0:00:19]}  d3 {[%clk 0:00:37]} 40. Rd6+ {[%clk 0:00:18]}  Ke7 {[%clk 0:00:37]} 41. Rd5 {[%clk 0:00:17]}  Nd4 {[%clk 0:00:28]} 42. Bb6 {[%clk 0:00:16]}  Ne2+ {[%clk 0:00:26]} 43. Kg2 {[%clk 0:00:16]}  Nc3 {[%clk 0:00:26]} 44. a6 {[%clk 0:00:10]}  Nxd5 {[%clk 0:00:26]} 0-1

[Event "January 2 Early 2024"]
[Site "https://www.chess.com"]
[Date "2024.01.02"]
[Round "1"]
[White "Viana, Valeria"]
[Black "Weishaeutel, Moritz"]
[Result "0-1"]
[Board "258"]
[TimeControl "180+1"]
[WhiteFideId "8407100"]
[BlackFideId "12967300"]
[WhiteElo "2169"]
[BlackElo "2584"]
[WhiteTeam "HON"]
[BlackTeam "GER"]
[WhiteClock "0:02:31"]
[BlackClock "0:02:39"]

1. e4 {[%clk 0:03:00]}  e5 {[%clk 0:03:00]} 2. Nf3 {[%clk 0:03:00]}  Nf6 {[%clk 0:03:00]} 3. Nxe5 {[%clk 0:02:59]}  Nc6 {[%clk 0:02:59]} 4. Nxc6 {[%clk 0:02:58]}  dxc6 {[%clk 0:03:00]} 5. Nc3 {[%clk 0:02:58]}  Bc5 {[%clk 0:03:00]} 6. Be2 {[%clk 0:02:54]}  h5 {[%clk 0:03:00]} 7. d3 {[%clk 0:02:49]}  Ng4 {[%clk 0:02:59]} 8. O-O {[%clk 0:02:45]}  Qh4 {[%clk 0:02:59]} 9. h3 {[%clk 0:02:39]}  Bxf2+ {[%clk 0:02:47]} 10. Kh1 {[%clk 0:02:31]}  Qg3 {[%clk 0:02:39]} 0-1

[Event "January 2 Early 2024"]
[Site "https://www.chess.com"]
[Date "2024.01.02"]
[Round "1"]
[White "Van Dael, Siem"]
[Black "Von Buelow, Georg"]
[Result "0-1"]
[Board "259"]
[TimeControl "180+1"]
[WhiteFideId "1049771"]
[BlackFideId "4620658"]
[WhiteElo "2582"]
[BlackElo "2168"]
[WhiteTeam "NED"]
[BlackTeam "GER"]
[WhiteClock "0:00:00"]
[BlackClock "0:00:08"]

1. e4 {[%clk 0:03:00]}  c5 {[%clk 0:02:57]} 2. Nf3 {[%clk 0:03:00]}  d6 {[%clk 0:02:57]} 3. d4 {[%clk 0:02:59]}  cxd4 {[%clk 0:02:58]} 4. Nxd4 {[%clk 0:03:00]}  Nf6 {[%clk 0:02:59]} 5. Nc3 {[%clk 0:03:00]}  a6 {[%clk 0:02:59]} 6. Be3 {[%clk 0:02:57]}  Ng4 {[%clk 0:02:58]} 7. Bc1 {[%clk 0:02:57]}  Nf6 {[%clk 0:02:58]} 8. f3 {[%clk 0:02:56]}  e6 {[%clk 0:02:57]} 9. Be3 {[%clk 0:02:55]}  b5 {[%clk 0:02:58]} 10. Qd2 {[%clk 0:02:54]}  Bb7 {[%clk 0:02:57]} 11. g4 {[%clk 0:02:52]}  Nfd7 {[%clk 0:02:57]} 12. O-O-O {[%clk 0:02:51]}  Nb6 {[%clk 0:02:57]} 13. a3 {[%clk 0:02:50]}  N8d7 {[%clk 0:02:56]} 14. Rg1 {[%clk 0:02:49]}  Rc8 {[%clk 0:02:54]} 15. Nb3 {[%clk 0:02:14]}  Ne5 {[%clk 0:02:44]} 16. Qf2 {[%clk 0:01:52]}  Nbc4 {[%clk 0:02:42]} 17. Bxc4 {[%clk 0:01:49]}  Nxc4 {[%clk 0:02:41]} 18. Bc5 {[%clk 0:01:39]}  Qc7 {[%clk 0:02:28]} 19. Bb4 {[%clk 0:01:37]}  d5 {[%clk 0:01:51]} 20. exd5 {[%clk 0:01:27]}  Bxb4 {[%clk 0:01:45]} 21. axb4 {[%clk 0:01:27]}  Nxb2 {[%clk 0:01:39]} 22. Nc5 {[%clk 0:01:23]}  Nxd1 {[%clk 0:01:35]} 23. Rxd1 {[%clk 0:01:13]}  Qf4+ {[%clk 0:01:11]} 24. Rd2 {[%clk 0:01:09]}  Qxb4 {[%clk 0:00:59]} 25. N3e4 {[%clk 0:00:41]}  Rxc5 {[%clk 0:00:25]} 26. Nxc5 {[%clk 0:00:24]}  Bxd5 {[%clk 0:00:21]} 27. Rxd5 {[%clk 0:00:16]}  exd5 {[%clk 0:00:19]} 28. Qe3+ {[%clk 0:00:17]}  Kd8 {[%clk 0:00:19]} 29. Nd3 {[%clk 0:00:07]}  Qd6 {[%clk 0:00:12]} 30. Qa7 {[%clk 0:00:07]}  Re8 {[%clk 0:00:12]} 31. Qa8+ {[%clk 0:00:06]}  Ke7 {[%clk 0:00:12]} 32. Qb7+ {[%clk 0:00:06]}  Kf8 {[%clk 0:00:12]} 33. f4 {[%clk 0:00:05]}  d4 {[%clk 0:00:12]} 34. Ne5 {[%clk 0:00:05]}  Qe7 {[%clk 0:00:10]} 35. Qe4 {[%clk 0:00:04]}  f6 {[%clk 0:00:09]} 36. Qxh7 {[%clk 0:00:03]}  fxe5 {[%clk 0:00:09]} 37. f5 {[%clk 0:00:00]}  Qg5+ {[%clk 0:00:08]} 0-1

[Event "January 2 Early 2024"]
[Site "https://www.chess.com"]
[Date "2024.01.02"]
[Round "1"]
[White "Biriukov, Ilja"]
[Black "Munoz Galvez, Jhon Edison"]
[Result "0-1"]
[Board "262"]
[TimeControl "180+1"]
[WhiteFideId "4113373"]
[BlackFideId "4403797"]
[WhiteElo "2160"]
[BlackElo "2580"]
[WhiteTeam "RUS"]
[BlackTeam "COL"]
[WhiteClock "0:00:28"]
[BlackClock "0:00:58"]

1. d4 {[%clk 0:02:52]}  Nf6 {[%clk 0:02:58]} 2. Nc3 {[%clk 0:02:51]}  d5 {[%clk 0:02:57]} 3. Bf4 {[%clk 0:02:48]}  a6 {[%clk 0:02:56]} 4. Qd2 {[%clk 0:02:40]}  b5 {[%clk 0:02:45]} 5. O-O-O {[%clk 0:02:34]}  Bb7 {[%clk 0:02:45]} 6. f3 {[%clk 0:02:33]}  Nbd7 {[%clk 0:02:41]} 7. g4 {[%clk 0:02:31]}  h6 {[%clk 0:02:40]} 8. h4 {[%clk 0:02:30]}  c5 {[%clk 0:02:38]} 9. g5 {[%clk 0:02:27]}  hxg5 {[%clk 0:02:38]} 10. Bxg5 {[%clk 0:02:28]}  cxd4 {[%clk 0:02:37]} 11. Qxd4 {[%clk 0:02:26]}  e6 {[%clk 0:02:37]} 12. e4 {[%clk 0:02:24]}  Bc5 {[%clk 0:02:36]} 13. Qd2 {[%clk 0:02:21]}  Qb6 {[%clk 0:02:35]} 14. Kb1 {[%clk 0:02:12]}  dxe4 {[%clk 0:02:13]} 15. Nxe4 {[%clk 0:02:08]}  Bxe4 {[%clk 0:02:07]} 16. fxe4 {[%clk 0:02:06]}  O-O-O {[%clk 0:02:05]} 17. Bg2 {[%clk 0:01:57]}  Ne5 {[%clk 0:02:03]} 18. Qe2 {[%clk 0:01:52]}  Rxd1+ {[%clk 0:01:58]} 19. Qxd1 {[%clk 0:01:53]}  Rd8 {[%clk 0:01:57]} 20. Qe2 {[%clk 0:01:52]}  Bxg1 {[%clk 0:01:55]} 21. a3 {[%clk 0:01:35]}  Qf2 {[%clk 0:01:38]} 22. Qxf2 {[%clk 0:01:29]}  Bxf2 {[%clk 0:01:36]} 23. Rf1 {[%clk 0:01:29]}  Bg3 {[%clk 0:01:26]} 24. b3 {[%clk 0:01:10]}  Rd4 {[%clk 0:01:23]} 25. Bf4 {[%clk 0:00:59]}  Bxf4 {[%clk 0:01:20]} 26. Rxf4 {[%clk 0:01:00]}  Rd2 {[%clk 0:01:20]} 27. Bh3 {[%clk 0:00:53]}  Rh2 {[%clk 0:01:18]} 28. Bf1 {[%clk 0:00:51]}  Ng6 {[%clk 0:01:17]} 29. Rf3 {[%clk 0:00:49]}  Rxh4 {[%clk 0:01:13]} 30. a4 {[%clk 0:00:44]}  Ne5 {[%clk 0:01:07]} 31. Rc3+ {[%clk 0:00:37]}  Kb7 {[%clk 0:01:07]} 32. axb5 {[%clk 0:00:37]}  Rh1 {[%clk 0:01:06]} 33. bxa6+ {[%clk 0:00:36]}  Kb6 {[%clk 0:01:01]} 34. a7 {[%clk 0:00:35]}  Rxf1+ {[%clk 0:01:00]} 35. Kb2 {[%clk 0:00:34]}  Kxa7 {[%clk 0:01:00]} 36. Rc5 {[%clk 0:00:33]}  Nfd7 {[%clk 0:00:58]} 37. Rc7+ {[%clk 0:00:28]}  Kb6 {[%clk 0:00:58]} 0-1

[Event "January 2 Early 2024"]
[Site "https://www.chess.com"]
[Date "2024.01.02"]
[Round "1"]
[White "Veljanoski, Andrej"]
[Black "Petersson, Kjell"]
[Result "1-0"]
[Board "263"]
[TimeControl "180+1"]
[WhiteFideId "15003604"]
[BlackFideId "1705148"]
[WhiteElo "2579"]
[BlackElo "2159"]
[WhiteTeam "MKD"]
[BlackTeam "SWE"]
[WhiteClock "0:00:12"]
[BlackClock "0:00:00"]

1. Nf3 {[%clk 0:03:00]}  f5 {[%clk 0:02:59]} 2. c4 {[%clk 0:03:01]}  Nf6 {[%clk 0:02:59]} 3. Nc3 {[%clk 0:03:01]}  e6 {[%clk 0:02:59]} 4. g3 {[%clk 0:03:01]}  d5 {[%clk 0:02:57]} 5. d4 {[%clk 0:02:55]}  c6 {[%clk 0:02:57]} 6. Bg2 {[%clk 0:02:55]}  Bd6 {[%clk 0:02:57]} 7. O-O {[%clk 0:02:55]}  O-O {[%clk 0:02:57]} 8. Bf4 {[%clk 0:02:55]}  Bxf4 {[%clk 0:02:56]} 9. gxf4 {[%clk 0:02:56]}  Ne4 {[%clk 0:02:53]} 10. e3 {[%clk 0:02:54]}  Rf6 {[%clk 0:02:50]} 11. Ne5 {[%clk 0:02:51]}  Rh6 {[%clk 0:02:46]} 12. Nxe4 {[%clk 0:02:47]}  fxe4 {[%clk 0:02:45]} 13. f3 {[%clk 0:02:47]}  exf3 {[%clk 0:02:31]} 14. Qxf3 {[%clk 0:02:48]}  Nd7 {[%clk 0:02:29]} 15. Ng4 {[%clk 0:02:43]}  Rg6 {[%clk 0:02:21]} 16. Rad1 {[%clk 0:02:40]}  Nf6 {[%clk 0:02:19]} 17. Ne5 {[%clk 0:02:36]}  Rh6 {[%clk 0:02:14]} 18. h3 {[%clk 0:02:35]}  Bd7 {[%clk 0:02:10]} 19. Kh2 {[%clk 0:02:35]}  Be8 {[%clk 0:02:10]} 20. Rd2 {[%clk 0:02:22]}  Bh5 {[%clk 0:01:57]} 21. Qg3 {[%clk 0:02:20]}  Qe7 {[%clk 0:01:53]} 22. Rg1 {[%clk 0:02:18]}  Rf8 {[%clk 0:01:51]} 23. c5 {[%clk 0:02:12]}  Nd7 {[%clk 0:01:47]} 24. b4 {[%clk 0:01:54]}  Nxe5 {[%clk 0:01:46]} 25. dxe5 {[%clk 0:01:55]}  a6 {[%clk 0:01:43]} 26. a4 {[%clk 0:01:54]}  Rf5 {[%clk 0:01:28]} 27. e4 {[%clk 0:01:46]}  Rf8 {[%clk 0:01:21]} 28. b5 {[%clk 0:01:30]}  Be8 {[%clk 0:01:12]} 29. bxa6 {[%clk 0:01:20]}  bxa6 {[%clk 0:01:10]} 30. f5 {[%clk 0:01:13]}  exf5 {[%clk 0:01:04]} 31. exd5 {[%clk 0:01:12]}  cxd5 {[%clk 0:00:56]} 32. Bxd5+ {[%clk 0:01:09]}  Kh8 {[%clk 0:00:57]} 33. Rc2 {[%clk 0:01:06]}  Bxa4 {[%clk 0:00:54]} 34. Rc3 {[%clk 0:01:01]}  f4 {[%clk 0:00:53]} 35. Qg5 {[%clk 0:00:53]}  Qxg5 {[%clk 0:00:51]} 36. Rxg5 {[%clk 0:00:54]}  Bc6 {[%clk 0:00:46]} 37. Bc4 {[%clk 0:00:52]}  a5 {[%clk 0:00:43]} 38. e6 {[%clk 0:00:52]}  f3 {[%clk 0:00:41]} 39. e7 {[%clk 0:00:44]}  Re8 {[%clk 0:00:42]} 40. Rf5 {[%clk 0:00:42]}  Rf6 {[%clk 0:00:39]} 41. Rxf6 {[%clk 0:00:42]}  gxf6 {[%clk 0:00:40]} 42. Re3 {[%clk 0:00:41]}  Kg7 {[%clk 0:00:39]} 43. Kg3 {[%clk 0:00:41]}  f5 {[%clk 0:00:36]} 44. Re6 {[%clk 0:00:41]}  Bd7 {[%clk 0:00:34]} 45. Re5 {[%clk 0:00:41]}  Kf6 {[%clk 0:00:34]} 46. Rd5 {[%clk 0:00:38]}  Rxe7 {[%clk 0:00:34]} 47. c6 {[%clk 0:00:39]}  Bc8 {[%clk 0:00:29]} 48. Rd8 {[%clk 0:00:38]}  Rc7 {[%clk 0:00:29]} 49. Rd6+ {[%clk 0:00:37]}  Ke5 {[%clk 0:00:28]} 50. Rh6 {[%clk 0:00:37]}  Ke4 {[%clk 0:00:27]} 51. Kf2 {[%clk 0:00:36]}  a4 {[%clk 0:00:25]} 52. Rh4+ {[%clk 0:00:34]}  Ke5 {[%clk 0:00:22]} 53. Bb5 {[%clk 0:00:34]}  a3 {[%clk 0:00:23]} 54. Ra4 {[%clk 0:00:31]}  Be6 {[%clk 0:00:20]} 55. Rxa3 {[%clk 0:00:30]}  Bd5 {[%clk 0:00:20]} 56. Rc3 {[%clk 0:00:28]}  Kd6 {[%clk 0:00:20]} 57. Rd3 {[%clk 0:00:27]}  Kc5 {[%clk 0:00:20]} 58. Ba4 {[%clk 0:00:27]}  Bxc6 {[%clk 0:00:19]} 59. Bxc6 {[%clk 0:00:25]}  Rxc6 {[%clk 0:00:18]} 60. Kxf3 {[%clk 0:00:26]}  Rh6 {[%clk 0:00:18]} 61. Kf4 {[%clk 0:00:26]}  Rh5 {[%clk 0:00:17]} 62. Rd1 {[%clk 0:00:26]}  Kc4 {[%clk 0:00:17]} 63. Rh1 {[%clk 0:00:25]}  Kd4 {[%clk 0:00:17]} 64. h4 {[%clk 0:00:25]}  Kd5 {[%clk 0:00:16]} 65. Rh2 {[%clk 0:00:24]}  Ke6 {[%clk 0:00:16]} 66. Kg3 {[%clk 0:00:23]}  Ke5 {[%clk 0:00:16]} 67. Re2+ {[%clk 0:00:23]}  Kf6 {[%clk 0:00:16]} 68. Ra2 {[%clk 0:00:23]}  f4+ {[%clk 0:00:16]} 69. Kg4 {[%clk 0:00:23]}  Rh6 {[%clk 0:00:15]} 70. Ra6+ {[%clk 0:00:23]}  Kg7 {[%clk 0:00:15]} 71. Ra7+ {[%clk 0:00:22]}  Kg6 {[%clk 0:00:15]} 72. h5+ {[%clk 0:00:20]}  Kf6 {[%clk 0:00:12]} 73. Rb7 {[%clk 0:00:16]}  f3 {[%clk 0:00:07]} 74. Rb3 {[%clk 0:00:13]}  Ke5 {[%clk 0:00:05]} 75. Re3+ {[%clk 0:00:12]}  Kd4 {[%clk 0:00:03]} 76. Rxf3 {[%clk 0:00:12]}  Re6 {[%clk 0:00:00]} 77. Rf4+ {[%clk 0:00:12]} 1-0